[Event "10th Menchik Memorial 2025"]
[Site "London"]
[Date "2025.03.23"]
[Round "8.5"]
[White "Zimina, Olga"]
[Black "Sliwicka, Alicja"]
[Result "1/2-1/2"]
[Annotator "TA"]
[ECO "D02"]
[WhiteElo "2293"]
[BlackElo "2342"]
[PlyCount "67"]
[EventDate "2025.03.11"]
[EventType "tourn"]
[EventCountry "ENG"]
[SourceTitle "playchess.com"]
[Source "ChessBase"]
[SourceQuality "1"]
[TimeControl "5400+30"]

{[%evp 9,67,17,15,12,22,22,17,21,34,31,26,-34,-62,-35,-46,-56,-47,-33,117,112,198,185,174,183,219,211,227,186,220,26,44,0,125,-19,0,-112,-121,-119,-92,-121,1,-4,96,96,89,83,51,67,73,73,76,0,25,0,72,0,47,0,70,66]} 1. d4 {[%emt 0:00:04]} Nf6 {[%emt 0:00:05]} 2. Nf3 {[%emt 0:00:05]} g6 {[%emt 0:00:06]} 3. Nbd2 {[%emt 0:00:09]} d5 {[%emt 0:00:21]} 4. e3 {[%emt 0:00:05]} Bg7 {[%emt 0:00:15]} 5. b4 {[%emt 0:00:05]} a5 {[%emt 0:00:05]} 6. b5 {[%emt 0:00:05] D02: 1 d4 d5 2 Nf3 sidelines, including 2...Nf6 3 g3 and 2...Nf6 3 Bf4.} c5 {[%emt 0:00:33]} 7. bxc6 {[%emt 0:00:24]} Nxc6 {[%emt 0:00:06]} 8. Be2 {[%emt 0:02:04] The position is equal.} O-O {[%emt 0:00:34]} 9. O-O {[%emt 0:00:05]} Bf5 {[%emt 0:00:06]} 10. a4 $146 {[%emt 0:00:55]} (10. c4 $11) (10. c4 Nb4 11. Bb2 Rc8 12. Ne5 Nd7 13. Nxd7 Qxd7 14. Bc3 Bc2 15. Qc1 Bd3 16. Bxd3 Nxd3 {0-1 Fressinet,L (2591)-Vachier Lagrave,M (2725) Titled Tuesday intern op 11th Mar Early blitz 2025 (4)}) 10... Nb4 $1 $15 {[%emt 0:05:51]} 11. Ne1 {[%emt 0:00:30]} Rc8 {[%emt 0:09:24]} 12. c4 {[%emt 0:00:32][%cal Bc2c4,Bc4d5][%mdl 32]} e5 {[%emt 0:02:45]} 13. Bb2 {[%emt 0:11:30]} Nd7 {[%emt 0:06:50]} (13... exd4 $15 {keeps the upper hand.} 14. Bxd4 Nc6) 14. cxd5 $16 {[%emt 0:05:21][%csl Od5] aiming for e4. White has a strong passed pawn} Nb6 {[%emt 0:24:47]} (14... exd4 $16 {was called for.} 15. e4 Nxd5 16. exf5 (16. exd5 d3 $14) 16... d3) 15. e4 $18 {[%emt 0:02:43]} (15. dxe5 Qxd5 16. Bf3 Qd7 $14) 15... Bd7 {[%emt 0:00:22]} 16. dxe5 {[%emt 0:01:00]} Qe8 {[%emt 0:00:14][%cal Rd7a4]} 17. Bd4 {[%emt 0:16:26]} Bxa4 {[%emt 0:06:05]} 18. Qb1 {[%emt 0:01:04]} Bb5 {[%emt 0:02:07]} 19. Rxa5 $2 {[%emt 0:20:29] [#]} (19. Bxb6 Bxe2 20. f4 (20. Rxa5 Bxe5 21. Nef3 Bc3 $11) 20... Bxf1 $14) (19. Bxb5 $18 Qxb5 20. Nef3) 19... Bxe2 $11 {[%emt 0:00:19]} 20. Bxb6 {[%emt 0:03:50]} Bxf1 {[%emt 0:02:51]} (20... Bxe5 $11 21. Bc5 (21. Qxb4 Bc3 $17) 21... b6 22. Bxb6 (22. Bxb4 $2 bxa5 23. Bxf8 Kxf8 $19) 22... Bxf1 23. Nxf1 (23. Qxb4 $2 Bc3 $19) 23... Bc3) 21. Kxf1 {[%emt 0:06:47]} ({White should play} 21. Nxf1 $16 Na6 22. d6 (22. f4 Rc4 $16)) 21... Bxe5 $1 {[%emt 0:00:44]} 22. Bc5 {[%emt 0:07:03]} (22. Qxb4 Bc3 (22... Bxh2 $2 23. g3 $18) 23. Qb5 Bxd2 (23... Qxb5+ 24. Rxb5 Bxd2 25. Nf3 $11) 24. Qxe8 Rfxe8 $17) (22. Kg1 $11 {remains equal.}) 22... b6 $1 $17 {[%emt 0:00:31]} 23. Bxb6 {[%emt 0:00:09]} Bc3 {[%emt 0:02:28]} 24. Nef3 {[%emt 0:02:19]} Rb8 {[%emt 0:01:31]} (24... Ra8 $17 {And now ...Rxa5 would win.} 25. Bd4 Rxa5 26. Bxc3 Qb5+ 27. Kg1 Rc8) 25. Nc4 $11 {[%emt 0:01:08]} Qc8 {[%emt 0:07:07]} (25... Ra8 $11 26. Rxa8 Qxa8) 26. Qb3 $36 {[%emt 0:01:25][%mdl 2048] Keeping Black busy.} Na6 {[%emt 0:00:45] Prevents d6. Black is weak on the dark squares} 27. Rb5 {[%emt 0:01:37]} Bg7 {[%emt 0:00:48]} 28. Qd3 {[%emt 0:01:10]} Qd7 {[%emt 0:01:16] [#]} 29. Nce5 $1 {[%emt 0:00:47] Excellent horsemanship.} Qb7 {[%emt 0:01:42][%cal Oa6c5]} 30. Nc4 {[%emt 0:02:36] White is more active.} (30. Qc4 $16) 30... Qd7 $11 {[%emt 0:02:13]} 31. Nce5 {[%emt 0:00:07]} (31. Ra5 $11 {was preferable.} Rfc8 32. Nfd2 (32. Rxa6 Qb5 $11)) 31... Qb7 $1 $16 {[%emt 0:00:04][%cal Oa6c5]} 32. Nc4 {[%emt 0:13:56]} Qd7 {[%emt 0:23:35]} 33. Nce5 {[%emt 0:00:30]} (33. Ra5 $5 Rfc8 34. Nfd2 $14 (34. Rxa6 Qb5 $11)) 33... Qb7 {[%cal Oa6c5]} 34. Nc6 {[%emt 0:00:30] Blacks defense is rewarded with a draw.   Weighted Error Value: White=0.35/Black=0.24 (precise)   Missed win:     	White=1     	---        Mistake:       	White=5     	Black=5      Inaccurate:     	White=1     	---        OK:         	White=12    	Black=11     Best:        	White=3     	Black=4      Strong:       	White=1     	Black=4} 1/2-1/2